fUSD/lending_fUSD_20240708
["ID","MTS","AMOUNT","RATE_DAILY","PERIOD"]
[331449097,1720421238492,-1356.32,0.00034028,47]
[331449098,1720421238531,-696.77,0.00034028,35]
[331449099,1720421238571,-783.1,0.00034028,51]
[331449100,1720421238608,-66076.27729933,0.00034028,30]
[331449101,1720421238651,-2192.07,0.00034028,51]
[331449102,1720421238702,-696.77,0.00034028,36]
[331449103,1720421238744,-1356.32,0.00034028,48]
[331449104,1720421238788,-783.1,0.00034028,52]
[331449105,1720421238830,-2192.07,0.00034028,52]
[331449106,1720421238874,-1356.32,0.00034028,49]
[331449107,1720421238915,-696.77,0.00034028,37]
[331449108,1720421238959,-783.20733949,0.00034028,53]
[331449109,1720421239001,-2192.25961648,0.00034028,53]
[331449110,1720421239045,-1356.32,0.00034028,50]
[331449111,1720421239088,-696.77,0.00034028,38]
[331449112,1720421239129,-1356.32,0.00034028,51]
[331449113,1720421239170,-696.77,0.00034028,39]
[331449114,1720421239213,-738.36,0.00034028,30]
[331449115,1720421239256,-1356.32,0.00034028,52]
[331449116,1720421239298,-696.77,0.00034028,40]
[331449117,1720421239340,-738.36,0.00034028,31]
[331449118,1720421239383,-696.77,0.00034028,41]
[331449119,1720421239429,-1356.52424566,0.00034028,53]
[331449120,1720421239473,-696.77,0.00034028,42]
[331449121,1720421239516,-738.36,0.00034028,32]
[331449122,1720421239555,-2631.6,0.00034028,30]
[331449123,1720421239598,-738.36,0.00034028,33]
[331449124,1720421239641,-696.77,0.00034028,43]
[331449125,1720421239689,-2631.6,0.00034028,31]
[331449126,1720421239734,-738.36,0.00034028,34]
[331449127,1720421239780,-696.77,0.00034028,44]
[331449128,1720421239823,-2631.6,0.00034028,32]
[331449129,1720421239864,-738.36,0.00034028,35]
[331449130,1720421239904,-696.77,0.00034028,45]
[331449131,1720421239947,-2631.6,0.00034028,33]
[331449132,1720421239991,-696.77,0.00034028,46]
[331449133,1720421240034,-738.36,0.00034028,36]
[331449134,1720421240076,-2631.6,0.00034028,34]
[331449135,1720421240120,-696.77,0.00034028,47]
[331449136,1720421240169,-2631.6,0.00034028,35]
[331449137,1720421240217,-696.77,0.00034028,48]
[331449138,1720421240263,-2631.6,0.00034028,36]
[331449139,1720421240309,-738.36,0.00034028,37]
[331449140,1720421240352,-2623.55763904,0.00034028,30]
[331449141,1720421240400,-2242.79882987,0.00034028,30]
[331449142,1720421240445,-696.77,0.00034028,49]
[331449143,1720421240489,-2631.6,0.00034028,37]
[331449144,1720421240532,-738.36,0.00034028,38]
[331449145,1720421240574,-2631.6,0.00034028,38]
[331449146,1720421240614,-696.77,0.00034028,50]
[331449147,1720421240658,-738.36,0.00034028,39]
[331449148,1720421240701,-2631.6,0.00034028,39]
[331449149,1720421240743,-696.77,0.00034028,51]
[331449150,1720421240783,-738.36,0.00034028,40]
[331449151,1720421240825,-2631.6,0.00034028,40]
[331449152,1720421240866,-696.77,0.00034028,52]
[331449153,1720421240905,-738.36,0.00034028,41]
[331449154,1720421240947,-2631.6,0.00034028,41]
[331449155,1720421240990,-1493.17,0.00034028,30]
[331449156,1720421241032,-738.36,0.00034028,42]
[331449157,1720421241070,-696.95774124,0.00034028,53]
[331449158,1720421241109,-2631.6,0.00034028,42]
[331449159,1720421241150,-1493.17,0.00034028,31]
[331449160,1720421241188,-500.0,0.00034028,30]
[331449161,1720421241537,-738.36,0.00034028,43]
[331449162,1720421241579,-2631.6,0.00034028,43]
[331449163,1720421241619,-1493.17,0.00034028,32]
[331449164,1720421241659,-2631.6,0.00034028,44]
[331449165,1720421241701,-738.36,0.00034028,44]
[331449166,1720421241743,-1493.17,0.00034028,33]
[331449167,1720421241783,-2631.6,0.00034028,45]
[331449168,1720421241823,-738.36,0.00034028,45]
[331449169,1720421241862,-1493.17,0.00034028,34]
[331449170,1720421241904,-2631.6,0.00034028,46]
[331449171,1720421241948,-738.36,0.00034028,46]
[331449172,1720421241989,-2631.6,0.00034028,47]
[331449173,1720421242029,-738.36,0.00034028,47]
[331449174,1720421242070,-1493.17,0.00034028,35]
[331449175,1720421242110,-2631.6,0.00034028,48]
[331449176,1720421242150,-738.36,0.00034028,48]
[331449177,1720421242188,-1493.17,0.00034028,36]
[331449178,1720421242230,-2631.6,0.00034028,49]
[331449179,1720421242270,-738.36,0.00034028,49]
[331449180,1720421242315,-1493.17,0.00034028,37]
[331449181,1720421242354,-2631.6,0.00034028,50]
[331449182,1720421242397,-738.36,0.00034028,50]
[331449183,1720421242438,-1493.17,0.00034028,38]
[331449184,1720421242478,-500.0,0.00034028,30]
[331449185,1720421242517,-2631.6,0.00034028,51]
[331449186,1720421242558,-738.36,0.00034028,51]
[331449187,1720421242597,-500.0,0.00034028,30]
[331449188,1720421242637,-1493.17,0.00034028,39]
[331449189,1720421242676,-500.0,0.00034028,31]
[331449190,1720421242716,-2631.6,0.00034028,52]
[331449191,1720421242757,-738.36,0.00034028,52]
[331449192,1720421242796,-536.37981253,0.00034028,31]
[331449193,1720421242835,-500.0,0.00034028,32]
[331449194,1720421242875,-738.49989632,0.00034028,53]
[331449195,1720421242918,-1493.17,0.00034028,40]
[331449196,1720421242959,-2631.67854498,0.00034028,53]
[331449197,1720421242996,-1493.17,0.00034028,41]
[331449198,1720421243036,-500.0,0.00034028,33]
[331449199,1720421243077,-1493.17,0.00034028,42]
[331449200,1720421243116,-500.0,0.00034028,34]
[331449201,1720421243155,-1493.17,0.00034028,43]
[331449202,1720421243196,-1901.41795736,0.00034028,30]
[331449203,1720421243236,-1493.17,0.00034028,44]
[331449204,1720421243277,-500.0,0.00034028,35]
[331449205,1720421243319,-1493.17,0.00034028,45]
[331449206,1720421243360,-500.0,0.00034028,36]
[331449207,1720421243402,-1493.17,0.00034028,46]
[331449208,1720421243444,-740.66,0.00034028,30]
[331449209,1720421243484,-500.0,0.00034028,30]
[331449210,1720421243526,-500.0,0.00034028,37]
[331449211,1720421243568,-774.74,0.00034028,30]
[331449212,1720421243606,-740.66,0.00034028,31]
[331449213,1720421243648,-1493.17,0.00034028,47]
[331449214,1720421243696,-500.0,0.00034028,31]
[331449215,1720421243737,-500.0,0.00034028,30]
[331449216,1720421243776,-500.0,0.00034028,30]
[331449217,1720421243815,-774.74,0.00034028,31]
[331449218,1720421243856,-500.0,0.00034028,38]
[331449219,1720421243895,-500.0,0.00034028,30]
[331449220,1720421243937,-500.0,0.00034028,30]
[331449221,1720421243979,-740.66,0.00034028,32]
[331449222,1720421244022,-1493.17,0.00034028,48]
[331449223,1720421244063,-240.87430638,0.00034028,32]
[331449224,1720421244103,-500.0,0.00034028,31]
[331449225,1720421244145,-500.0,0.00034028,31]
[331449226,1720421244191,-774.74,0.00034028,32]
[331449227,1720421244234,-500.0,0.00034028,31]
[331449228,1720421244275,-45959.00832588,0.00034028,30]
[331449229,1720421244316,-500.0,0.00034028,31]
[331449230,1720421244359,-740.66,0.00034028,33]
[331449231,1720421244402,-500.0,0.00034028,32]
[331449232,1720421244444,-500.0,0.00034028,32]
[331449233,1720421244488,-774.74,0.00034028,33]
[331449234,1720421244528,-500.0,0.00034028,32]
[331449235,1720421244569,-500.0,0.00034028,32]
[331449236,1720421244609,-740.66,0.00034028,34]
[331449237,1720421244650,-522.46980176,0.00034028,33]
[331449238,1720421244695,-500.0,0.00034028,33]
[331449239,1720421244735,-500.0,0.00034028,39]
[331449240,1720421244779,-774.74,0.00034028,34]
[331449241,1720421244819,-500.0,0.00034028,33]
[331449242,1720421244860,-740.66,0.00034028,35]
[331449243,1720421244902,-500.0,0.00034028,34]
[331449244,1720421244945,-500.0,0.00034028,40]
[331449245,1720421244986,-774.74,0.00034028,35]
[331449246,1720421245027,-500.0,0.00034028,34]
[331449247,1720421245068,-740.66,0.00034028,36]
[331449248,1720421245109,-500.0,0.00034028,33]
[331449249,1720421245150,-500.0,0.00034028,35]
[331449250,1720421245189,-500.0,0.00034028,41]
[331449251,1720421245228,-774.74,0.00034028,36]
[331449252,1720421245267,-500.0,0.00034028,35]
[331449253,1720421245308,-740.66,0.00034028,37]
[331449254,1720421245348,-500.0,0.00034028,30]
[331449255,1720421245388,-500.0,0.00034028,34]
[331449256,1720421245430,-500.0,0.00034028,36]
[331449257,1720421245469,-203.16,0.00034028,42]
[331449258,1720421245509,-774.74,0.00034028,37]
[331449259,1720421245549,-500.0,0.00034028,36]
[331449260,1720421245590,-500.0,0.00034028,31]
[331449261,1720421245629,-740.66,0.00034028,38]
[331449262,1720421245670,-500.0,0.00034028,35]
[331449263,1720421245711,-500.0,0.00034028,37]
[331449264,1720421245750,-774.74,0.00034028,38]
[331449265,1720421246026,-393.91036656,0.00034028,38]
[331449266,1720421246072,-740.66,0.00034028,39]
[331449267,1720421246114,-500.0,0.00034028,36]
[331449268,1720421246154,-500.0,0.00034028,37]
[331449269,1720421246194,-500.0,0.00034028,32]
[331449270,1720421246235,-774.74,0.00034028,39]
[331449271,1720421246275,-500.0,0.00034028,30]
[331449272,1720421246315,-740.66,0.00034028,40]
[331449273,1720421246355,-500.0,0.00034028,37]
[331449274,1720421246395,-500.0,0.00034028,38]
[331449275,1720421246434,-774.74,0.00034028,40]
[331449276,1720421246474,-740.66,0.00034028,41]
[331449277,1720421246514,-774.74,0.00034028,41]
[331449278,1720421246553,-500.0,0.00034028,31]
[331449279,1720421246593,-740.66,0.00034028,42]
[331449280,1720421246635,-579.108773,0.00034028,32]
[331449281,1720421246680,-740.66,0.00034028,43]
[331449282,1720421246720,-500.0,0.00034028,39]
[331449283,1720421246760,-500.0,0.00034028,30]
[331449284,1720421246801,-774.74,0.00034028,42]
[331449285,1720421246841,-500.0,0.00034028,40]
[331449286,1720421246881,-500.0,0.00034028,38]
[331449287,1720421246922,-500.0,0.00034028,31]
[331449288,1720421246963,-774.74,0.00034028,43]
[331449289,1720421247004,-1493.17,0.00034028,49]
[331449290,1720421247044,-500.0,0.00034028,30]
[331449291,1720421247086,-500.0,0.00034028,39]
[331449292,1720421247126,-500.0,0.00034028,41]
[331449293,1720421247165,-740.66,0.00034028,44]
[331449294,1720421247205,-500.0,0.00034028,32]
[331449295,1720421247248,-774.74,0.00034028,44]
[331449296,1720421247290,-1493.17,0.00034028,50]
[331449297,1720421247332,-500.0,0.00034028,31]
[331449298,1720421247373,-500.0,0.00034028,40]
[331449299,1720421247415,-500.0,0.00034028,42]
[331449300,1720421247456,-740.66,0.00034028,45]
[331449301,1720421247498,-774.74,0.00034028,45]
[331449302,1720421247540,-1493.17,0.00034028,51]
[331449303,1720421247580,-500.0,0.00034028,32]
[331449304,1720421247621,-500.0,0.00034028,30]
[331449305,1720421247662,-500.0,0.00034028,41]
[331449306,1720421247703,-500.0,0.00034028,43]
[331449307,1720421247746,-740.66,0.00034028,46]
[331449308,1720421247787,-500.0,0.00034028,30]
[331449309,1720421247828,-774.74,0.00034028,46]
[331449310,1720421247869,-500.0,0.00034028,33]
[331449311,1720421247910,-518.3727979,0.00034028,30]
[331449312,1720421247954,-1493.17,0.00034028,52]
[331449313,1720421247997,-500.0,0.00034028,33]
[331449314,1720421248037,-500.0,0.00034028,31]
[331449315,1720421248078,-740.66,0.00034028,47]
[331449316,1720421248118,-500.0,0.00034028,42]
[331449317,1720421248158,-500.0,0.00034028,44]
[331449318,1720421248197,-774.74,0.00034028,47]
[331449319,1720421248236,-500.0,0.00034028,34]
[331449320,1720421248276,-500.0,0.00034028,34]
[331449321,1720421248317,-1493.40635765,0.00034028,53]
[331449322,1720421248358,-6796.84576621,0.00034028,30]
[331449323,1720421248398,-561.38661856,0.00034028,32]
[331449324,1720421248440,-500.0,0.00034028,31]
[331449325,1720421248491,-500.0,0.00034028,43]
[331449326,1720421248533,-740.66,0.00034028,48]
[331449327,1720421248574,-500.0,0.00034028,45]
[331449328,1720421248619,-774.74,0.00034028,48]
[331449329,1720421248662,-500.0,0.00034028,35]
[331449330,1720421248706,-500.0,0.00034028,32]
[331449331,1720421248749,-500.0,0.00034028,44]
[331449332,1720421248791,-500.0,0.00034028,46]
[331449333,1720421248831,-740.66,0.00034028,49]
[331449334,1720421248871,-774.74,0.00034028,49]
[331449335,1720421248911,-500.0,0.00034028,36]
[331449336,1720421248955,-500.0,0.00034028,35]
[331449337,1720421248999,-500.0,0.00034028,33]
[331449338,1720421249039,-500.0,0.00034028,45]
[331449339,1720421249092,-500.0,0.00034028,47]
[331449340,1720421249134,-774.74,0.00034028,50]
[331449341,1720421249178,-500.0,0.00034028,37]
[331449342,1720421249221,-740.66,0.00034028,50]
[331449343,1720421249265,-427.59706595,0.00034028,36]
[331449344,1720421249306,-500.0,0.00034028,34]
[331449345,1720421249350,-500.0,0.00034028,46]
[331449346,1720421249395,-500.0,0.00034028,48]
[331449347,1720421249440,-774.74,0.00034028,51]
[331449348,1720421249484,-740.66,0.00034028,51]
[331449349,1720421249527,-500.0,0.00034028,38]
[331449350,1720421249570,-500.0,0.00034028,35]
[331449351,1720421249611,-500.0,0.00034028,47]
[331449352,1720421249653,-500.0,0.00034028,49]
[331449353,1720421249701,-740.66,0.00034028,52]
[331449354,1720421249746,-774.74,0.00034028,52]
[331449355,1720421249789,-500.0,0.00034028,39]
[331449356,1720421249829,-500.0,0.00034028,36]
[331449357,1720421249871,-500.0,0.00034028,48]
[331449358,1720421249911,-740.70654583,0.00034028,53]
[331449359,1720421249955,-774.85057414,0.00034028,53]
[331449360,1720421249997,-500.0,0.00034028,40]
[331449361,1720421250039,-500.0,0.00034028,37]
[331449362,1720421250080,-214.52780461,0.00034028,49]
[331449363,1720421250122,-500.0,0.00034028,41]
[331449364,1720421250163,-500.0,0.00034028,38]
[331449365,1720421250205,-500.0,0.00034028,42]
[331449366,1720421250244,-500.0,0.00034028,39]
[331449367,1720421250284,-500.0,0.00034028,43]
[331449368,1720421250325,-500.0,0.00034028,40]
[331449369,1720421250365,-500.0,0.00034028,44]
[331449370,1720421250623,-323.63752391,0.00034028,41]
[331449371,1720421250665,-549.24799418,0.00034028,45]
[331449372,1720421250709,-500.0,0.00034028,30]
[331449373,1720421250751,-500.0,0.00034028,30]
[331449374,1720421250792,-500.0,0.00034028,31]
[331449375,1720421250832,-500.0,0.00034028,31]
[331449376,1720421250872,-500.0,0.00034028,30]
[331449377,1720421250913,-500.0,0.00034028,32]
[331449378,1720421250954,-500.0,0.00034028,32]
[331449379,1720421250994,-500.0,0.00034028,31]
[331449380,1720421251035,-369.53,0.00034028,33]
[331449381,1720421251076,-500.0,0.00034028,33]
[331449383,1720421251119,-500.0,0.00034028,32]
[331449384,1720421251160,-501.49924348,0.00034028,30]
[331449385,1720421251201,-612.42,0.00034028,30]
[331449387,1720421251240,-500.0,0.00034028,30]
[331449390,1720421251280,-500.0,0.00034028,33]
[331449393,1720421252510,-612.42,0.00034028,31]
[331449396,1720421252551,-500.0,0.00034028,31]
[331449399,1720421252592,-500.0,0.00034028,34]
[331449401,1720421252633,-612.42,0.00034028,32]
[331449403,1720421252675,-500.0,0.00034028,35]
[331449404,1720421252716,-612.42,0.00034028,33]
[331449405,1720421252756,-500.0,0.00034028,32]
[331449406,1720421252795,-500.0,0.00034028,36]
[331449407,1720421252834,-612.42,0.00034028,34]
[331449408,1720421252874,-500.0,0.00034028,33]
[331449409,1720421252913,-500.0,0.00034028,37]
[331449410,1720421252956,-612.42,0.00034028,35]
[331449411,1720421252994,-3519.42836763,0.00034028,30]
[331449412,1720421253033,-500.0,0.00034028,38]
[331449413,1720421253073,-612.42,0.00034028,36]
[331449414,1720421253112,-500.0,0.00034028,39]
[331449415,1720421253152,-976.88,0.00034028,30]
[331449416,1720421253190,-500.0,0.00034028,30]
[331449417,1720421253228,-500.0,0.00034028,40]
[331449418,1720421253268,-1708.74,0.00034028,30]
[331449419,1720421253305,-976.88,0.00034028,31]
[331449420,1720421253344,-500.0,0.00034028,31]
[331449421,1720421253384,-612.42,0.00034028,37]
[331449422,1720421253426,-743.63,0.00034028,30]
[331449423,1720421253468,-500.0,0.00034028,41]
[331449424,1720421253509,-1708.74,0.00034028,31]
[331449425,1720421253551,-976.88,0.00034028,32]
[331449426,1720421253591,-500.0,0.00034028,32]
[331449427,1720421253631,-612.42,0.00034028,38]
[331449428,1720421253672,-743.63,0.00034028,31]
[331449429,1720421253712,-500.0,0.00034028,42]
[331449430,1720421253751,-1708.74,0.00034028,32]
[331449431,1720421253791,-976.88,0.00034028,33]
[331449432,1720421253829,-638.29878579,0.00034028,33]
[331449433,1720421253871,-612.42,0.00034028,39]
[331449434,1720421253910,-500.0,0.00034028,43]
[331449435,1720421253952,-1708.74,0.00034028,33]
[331449436,1720421253994,-1005.41,0.00034028,30]
[331449437,1720421254037,-976.88,0.00034028,34]
[331449438,1720421254079,-565.57692605,0.00034028,50]
[331449439,1720421254120,-1708.74,0.00034028,34]
[331449440,1720421254163,-743.63,0.00034028,32]
[331449441,1720421254206,-1005.41,0.00034028,31]
[331449442,1720421254248,-976.88,0.00034028,35]
[331449443,1720421254290,-1708.74,0.00034028,35]
[331449444,1720421254332,-743.63,0.00034028,33]
[331449445,1720421254376,-1005.41,0.00034028,32]
[331449446,1720421254418,-976.88,0.00034028,36]
[331449447,1720421254461,-500.0,0.00034028,30]
[331449448,1720421254501,-1708.74,0.00034028,36]
[331449449,1720421254542,-500.0,0.00034028,44]
[331449450,1720421254584,-743.63,0.00034028,34]
[331449451,1720421254625,-1005.41,0.00034028,33]
[331449452,1720421254669,-500.0,0.00034028,31]
[331449453,1720421254711,-1708.74,0.00034028,37]
[331449454,1720421254752,-500.0,0.00034028,45]
[331449455,1720421254794,-1005.41,0.00034028,34]
[331449456,1720421254835,-500.0,0.00034028,32]
[331449457,1720421254875,-976.88,0.00034028,37]
[331449458,1720421254915,-1708.74,0.00034028,38]
[331449459,1720421254955,-500.03614044,0.00034028,46]
[331449460,1720421254996,-1005.41,0.00034028,35]
[331449461,1720421255035,-743.63,0.00034028,35]
[331449462,1720421255076,-500.0,0.00034028,33]
[331449463,1720421255117,-904.71,0.00034028,30]
[331449464,1720421255158,-976.88,0.00034028,38]
[331449465,1720421255200,-1708.74,0.00034028,39]
[331449466,1720421255240,-743.63,0.00034028,36]
[331449467,1720421255278,-1005.41,0.00034028,36]
[331449468,1720421255321,-904.71,0.00034028,31]
[331449469,1720421255361,-500.0,0.00034028,34]
[331449470,1720421255402,-976.88,0.00034028,39]
[331449471,1720421255442,-1708.74,0.00034028,40]
[331449472,1720421255481,-1005.41,0.00034028,37]
[331449473,1720421255518,-904.71,0.00034028,32]
[331449474,1720421255557,-743.63,0.00034028,37]
[331449475,1720421255596,-500.0,0.00034028,35]
[331449476,1720421255635,-976.88,0.00034028,40]
[331449477,1720421255674,-1708.74,0.00034028,41]
[331449478,1720421255712,-1005.41,0.00034028,38]
[331449479,1720421255750,-904.71,0.00034028,33]
[331449480,1720421255789,-743.63,0.00034028,38]
[331449481,1720421255825,-500.0,0.00034028,36]
[331449482,1720421255863,-976.88,0.00034028,41]
[331449483,1720421255901,-1708.74,0.00034028,42]
[331449484,1720421255941,-1005.41,0.00034028,39]
[331449485,1720421256235,-904.71,0.00034028,34]
[331449486,1720421256275,-500.0,0.00034028,37]
[331449487,1720421256314,-743.63,0.00034028,39]
[331449488,1720421256354,-976.88,0.00034028,42]
[331449489,1720421256393,-1708.74,0.00034028,43]
[331449490,1720421256436,-1005.41,0.00034028,40]
[331449491,1720421256477,-500.0,0.00034028,38]
[331449492,1720421256517,-904.71,0.00034028,35]
[331449493,1720421256556,-743.63,0.00034028,40]
[331449494,1720421256594,-976.88,0.00034028,43]
[331449495,1720421256634,-1708.74,0.00034028,44]
[331449496,1720421256675,-1005.41,0.00034028,41]
[331449497,1720421256714,-500.0,0.00034028,39]
[331449498,1720421256753,-743.63,0.00034028,41]
[331449499,1720421256793,-904.71,0.00034028,36]
[331449500,1720421256833,-976.88,0.00034028,44]
[331449501,1720421256874,-1708.74,0.00034028,45]
[331449502,1720421256918,-1005.41,0.00034028,42]
[331449503,1720421256959,-557.19705177,0.00034028,40]
[331449504,1720421257000,-904.71,0.00034028,37]
[331449505,1720421257041,-743.63,0.00034028,42]
[331449506,1720421257081,-1708.74,0.00034028,46]
[331449507,1720421257123,-976.88,0.00034028,45]
[331449508,1720421257164,-1005.41,0.00034028,43]
[331449509,1720421257206,-904.71,0.00034028,38]
[331449510,1720421257249,-1708.74,0.00034028,47]
[331449511,1720421257290,-743.63,0.00034028,43]
[331449512,1720421257332,-1005.41,0.00034028,44]
[331449513,1720421257373,-2500.0,0.00034028,30]
[331449514,1720421257413,-976.88,0.00034028,46]
[331449515,1720421257454,-492.932912,0.00034028,39]
[331449753,1720421448211,-9741.80218521,0.000118,2]
[331449754,1720421448222,-1272.24,0.000118,2]
[331449755,1720421448234,-15950.86851453,0.000118,2]
[331449756,1720421448245,-447.53187127,0.000118,2]
[331449757,1720421448256,-24537.23106322,0.000118,2]
[331449758,1720421448266,-2878.883,0.00012059,2]
[331449759,1720421448276,-150.0,0.00012219,2]
[331449760,1720421448286,-150.0,0.000126,2]
[331449761,1720421448295,-6272.7,0.00012609,2]
[331449762,1720421448305,-168.18,0.00012638,2]
[331449763,1720421448317,-155.4,0.00012665,2]
[331449764,1720421448327,-981.87,0.00012665,2]
[331449765,1720421448336,-250.0,0.00012698,2]
[331449766,1720421448346,-1000.0,0.00012794,2]
[331449767,1720421448355,-614.5,0.00013128,2]
[331449768,1720421448366,-2633.939385,0.00013148,2]
[331449769,1720421448375,-2439.315983,0.00013148,2]
[331449770,1720421448386,-171.786265,0.00013148,2]
[331449771,1720421448395,-183.066612,0.00013148,2]
[331449772,1720421448405,-182.70747,0.00013148,2]
[331449773,1720421448416,-1428.520913,0.00013148,2]
[331449774,1720421448426,-2633.939385,0.00013312,2]
[331449775,1720421448436,-2439.315983,0.00013312,2]
[331449776,1720421448446,-1428.520913,0.00013312,2]
[331449777,1720421448456,-355.08,0.0001337,2]
[331449778,1720421448466,-355.08,0.0001337,2]
[331449779,1720421448476,-355.08,0.0001337,2]
[331449780,1720421448486,-355.08,0.0001337,2]
[331449781,1720421448496,-2633.939385,0.00013477,2]
[331449782,1720421448506,-2439.315983,0.00013477,2]
[331449783,1720421448516,-1428.520913,0.00013477,2]
[331449784,1720421448526,-334.11800582,0.0001358,2]
[331449785,1720421448536,-2633.939385,0.00013641,2]
[331449786,1720421448545,-2439.315983,0.00013641,2]
[331449787,1720421448555,-1428.520913,0.00013641,2]
[331449788,1720421448568,-250.0,0.00013699,2]
[331449789,1720421448577,-10000.0,0.00013699,2]
[331449790,1720421448587,-2751.0,0.00013699,2]
[331449791,1720421448596,-317.96,0.00013699,5]
[331449792,1720421448606,-200.0,0.00013699,2]
[331449793,1720421448615,-500.0,0.000137,5]
[331449794,1720421448625,-1000.0,0.000138,5]
[331449795,1720421448634,-182.70747,0.00013805,2]
[331449796,1720421448644,-2633.939385,0.00013805,2]
[331449797,1720421448653,-2439.315983,0.00013805,2]
[331449798,1720421448663,-1428.520913,0.00013805,2]
[331449799,1720421448673,-1107.723,0.0001387,2]
[331449800,1720421448683,-467.741,0.0001387,2]
[331449801,1720421448693,-362.018,0.0001387,2]
[331449802,1720421448702,-1846.945,0.0001387,2]
[331449803,1720421448711,-450.077,0.0001387,2]
[331449804,1720421448721,-150.439,0.0001387,2]
[331449805,1720421448731,-166.995,0.0001387,2]
[331449806,1720421448743,-809.0,0.0001387,2]
[331449807,1720421448761,-2376.0,0.0001387,2]
[331449809,1720421448773,-1304.0,0.0001387,2]
[331449811,1720421448783,-3249.0,0.0001387,2]
[331449814,1720421448793,-1964.0,0.0001387,2]
[331449816,1720421448803,-549.0,0.0001387,2]
[331449819,1720421448814,-638.804,0.0001387,2]
[331449821,1720421448826,-14714.414,0.0001387,2]
[331449823,1720421448836,-1527.059,0.0001387,2]
[331449825,1720421448845,-151.477,0.0001387,2]
[331449827,1720421448854,-150.166,0.0001387,2]
[331449829,1720421448864,-1071.0,0.0001387,2]
[331449831,1720421448873,-12777.11077048,0.00013889,2]
[331449833,1720421448883,-155.3679551,0.00013889,2]
[331449835,1720421448893,-462.12662794,0.00013899,2]
[331449837,1720421448903,-462.12662794,0.00013899,2]
[331449839,1720421448913,-462.12662794,0.00013899,2]
[331449841,1720421448922,-1500.0,0.000139,5]
[331449843,1720421448931,-2000.0,0.00013973,3]
[331449844,1720421448940,-500.0,0.00013999,2]
[331449845,1720421448950,-533.5026172,0.00013999,2]
[331449846,1720421448959,-241.86940619,0.00013999,2]
[331449848,1720421448970,-295.29804498,0.00014,2]
[331449850,1720421448980,-655965.43811744,0.00014,2]
[331449853,1720421448993,-1381.95190557,0.00014,2]
[331449855,1720421449006,-431.18512968,0.00014,2]
[331449857,1720421449018,-23196.95253944,0.00014,2]
[331449859,1720421449030,-679.83163208,0.00014,2]
[331449862,1720421449042,-860.35582076,0.00014,2]
[331449864,1720421449054,-521.97670531,0.00014,2]
[331449866,1720421449070,-1706.1498888,0.00014,2]
[331449868,1720421449082,-11191.37329286,0.00014,2]
[331449871,1720421449093,-569.99999994,0.00014,2]
[331449873,1720421449105,-351.899999,0.00014,2]
[331449875,1720421449116,-1024.46733529,0.00014,2]
[331449877,1720421449128,-3210.85387545,0.00014,2]
[331449886,1720421449472,-1062.65487109,0.00014,2]
[331449887,1720421449484,-17994.43940248,0.00014,2]
[331449888,1720421449496,-1395.41908041,0.00014,2]
[331449893,1720421449654,-1339.32568212,0.00014,2]